Cogmind - Beta 13 *** ADVENTURER MODE // 2024.04.09 @ 18:42:45 Player: Shippujinlai Result: Destroyed by G-34 Mercenary with Small Laser Performance ------------- Evolutions (0) 0 Regions Visited (4) 800 Robots Destroyed (36) 180 Value Destroyed (1004) 1004 Prototype IDs (25) 500 Alien Tech Used (0) 0 Bonus (316) 316 TOTAL SCORE: 2800 Bonus ------- High Alert Combat Kills 16 Aligned with FarCom 300 Cogmind --------- Core Integrity 0/250 Matter 245/300 Energy 125/125 System Corruption 0% Temperature Cool (26) Movement Rolling (80) Location -9/Mines Parts ------- > --- POWER (1) -------- Light Ion Engine > --- PROPULSION (2) --- Wheel > --- UTILITY (2) ------ Signal Interpreter Core Shielding > --- WEAPON (2) ------- Rocket Launcher > --- INVENTORY (5) ---- Ion Engine Heat Sink Signal Interpreter Improved Terrain Scanner Light Armor Plating Peak State ------------ > --- POWER ------------ Light Ion Engine > --- PROPULSION ------- Wheel Wheel > --- UTILITY ---------- Signal Interpreter Improved Terrain Scanner > --- WEAPON ----------- EM Pulse Gun Assault Rifle > --- INVENTORY -------- Ion Engine Light Ion Engine Large Storage Unit Signal Interpreter Light Armor Plating [Rating: 9] Favorites ----------- Power Light Ion Engine Engine Light Ion Engine Propulsion Wheel Leg Aluminum Leg Wheel Wheel Utility Signal Interpreter Device Heat Sink Storage Large Storage Unit Processor Signal Interpreter Protection Core Shielding Weapon Assault Rifle Energy Gun EM Pulse Gun Ballistic Gun Assault Rifle Launcher Rocket Launcher Build | -11 -10 -10 -10 -9 ------- Run | Yrd Mat Min Exi Min Slots Evolved . | . . . . . Power . | . . . . . Propulsion . | . . . . . Utility . | . . . . . Weapon . | . . . . . Parts Attached 23 | 6 3 . 1 13 Power 3 | 1 . . . 2 Engine 3 | 1 . . . 2 Core . | . . . . . Reactor . | . . . . . Propulsion 6 | 2 1 . . 3 Treads . | . . . . . Leg 1 | . 1 . . . Wheel 5 | 2 . . . 3 Hover . | . . . . . Flight . | . . . . . Utility 8 | 1 2 . 1 4 Device 2 | . . . . 2 Storage 3 | 1 1 . 1 . Processor 1 | . 1 . . . Hackware . | . . . . . Protection 2 | . . . . 2 Artifact . | . . . . . Weapon 6 | 2 . . . 4 Energy Gun 3 | 1 . . . 2 Energy Cannon . | . . . . . Ballistic Gun 1 | 1 . . . . Ballistic Cannon . | . . . . . Launcher 2 | . . . . 2 Special Weapon . | . . . . . Impact Weapon . | . . . . . Slashing Weapon . | . . . . . Piercing Weapon . | . . . . . Special Melee Weapon . | . . . . . Unidentified Prototypes 1 | . . . 1 . Parts Lost 7 | . 1 . . 6 Power 1 | . . . . 1 Propulsion 3 | . 1 . . 2 Utility . | . . . . . Weapon 3 | . . . . 3 Highest Loss Streak 2 | . 1 . . 2 To Critical Strikes . | . . . . . Average Slot Usage (%) 97 | . 96 100 93 99 Engine 13 | . 14 14 14 13 Leg 4 | . 8 14 14 . Wheel 23 | . 17 14 14 27 Device 1 | . . . . 2 Storage 3 | . 14 14 8 . Processor 13 | . 12 14 14 14 Protection 7 | . . . . 11 Energy Gun 14 | . 14 14 14 14 Ballistic Gun 7 | . 14 14 14 4 Launcher 5 | . . . . 8 Naked Turns . | . . . . . Heaviest Build 27 | 12 27 27 27 10 Greatest Support 26 | 26 26 10 10 20 Greatest Overweight (x) 2 | . 2 2 2 . Average Overweight (x) . | . 1 2 . . Largest Inventory Capacity 15 | 8 15 15 15 5 Average Capacity 7 | 7 13 15 10 5 Most Carried 5 | 1 3 3 4 5 Average Carried 4 | . 2 3 3 4 Final Capacity 15 | 8 15 15 5 5 Final Carried 5 | 1 3 3 4 5 Class Distribution -------------------- 53% | Mutant 44% | Scavenger-Mutant Dominant Class ---------------- Mutant | -10/Materials Mutant | -10/Mines Mutant | -10/Exiles Scavenger-Mutant | -9/Mines Resources | -11 -10 -10 -10 -9 ----------- Run | Yrd Mat Min Exi Min Matter Collected 648 | 160 161 3 . 324 Remotely . | . . . . . Salvage Created 1483 | . 215 12 . 1256 Parts 97 | . 9 1 . 87 Haulers Intercepted . | . . . . . Recyclers Shooed . | . . . . . Parts Field Recycled . | . . . . . Retrieved Matter . | . . . . . Parts Self-Destructed . | . . . . . Prevented . | . . . . . Kills | -11 -10 -10 -10 -9 ------- Run | Yrd Mat Min Exi Min Combat Hostiles Destroyed 41 | . 5 . . 36 Guns 16 | . 2 . . 14 AOE 25 | . 3 . . 22 Classes Destroyed 5 | . 1 1 . 3 Worker 1 | . . 1 . . Builder 1 | . . . . 1 Tunneler 8 | . . . . 8 Grunt 40 | . 5 . . 35 Brawler 1 | . . . . 1 Best Kill Streak 22 | . 2 1 . 22 Combat Bots Only 17 | . 2 . . 17 Max Kills in Single Turn 4 | . 2 1 . 4 Gunslinging . | . . . . . Exploded 3 | . 2 . . 3 Melee . | . . . . . Uniques/NPCs Destroyed . | . . . . . Combat | -11 -10 -10 -10 -9 -------- Run | Yrd Mat Min Exi Min Hostile Shots Fired 97 | . 12 . . 85 Missed 25 | . 4 . . 21 Damage Taken 772 | . 172 . . 600 Core 250 | . 48 . . 202 Absorbed by Shields . | . . . . . Redirected to Shielding 2 | . . . . 2 Ignored by Resistances 241 | . 50 . . 191 Core Remaining (%) 100 | 100 . . . . Volleys Fired 70 | . 12 1 . 57 Largest 2 | . 2 2 . 2 Hottest 80 | . 60 60 . 80 Shots Fired 117 | . 24 2 . 91 Gun 101 | . 24 2 . 75 Cannon . | . . . . . Launcher 16 | . . . . 16 Special . | . . . . . Kinetic 34 | . 12 1 . 21 Thermal 32 | . . . . 32 Explosive 16 | . . . . 16 Electromagnetic 35 | . 12 1 . 22 Robot Hit Streak 23 | . 10 4 . 23 Robot Miss Streak 2 | . 1 . . 2 Penetration Max . | . . . . . Secondary Targets 1 | . . . . 1 Max Gunslinging Chain 1 | . . . . 1 Shots Hit Robots 93 | . 18 2 . 73 Core Hits 90 | . 7 1 . 82 Critical Kills . | . . . . . Critical Parts Destroyed 1 | . . . . 1 Critical Strikes 2 | . 1 . . 1 Destroy 1 | . . . . 1 Corrupt 1 | . 1 . . . Melee Attacks . | . . . . . Impact . | . . . . . Slashing . | . . . . . Piercing . | . . . . . Sneak Attacks . | . . . . . Combat Hostiles . | . . . . . Follow-up Attacks . | . . . . . Damage Inflicted 3942 | . 338 29 . 3575 Guns 986 | . 205 29 . 752 Cannons . | . . . . . Explosions 2956 | . 133 . . 2823 Melee . | . . . . . Ramming . | . . . . . Kinetic 302 | . 99 14 . 189 Thermal 642 | . 133 . . 509 Explosive 2612 | . . . . 2612 Electromagnetic 386 | . 106 15 . 265 Impact . | . . . . . Slashing . | . . . . . Piercing . | . . . . . Highest Corruption . | . . . . . Average Corruption . | . . . . . Corruption Purged . | . . . . . Corruption Blocked . | . . . . . Overload Shots . | . . . . . Overflow Damage 46 | . . . . 46 Projectiles . | . . . . . Explosions 46 | . . . . 46 Melee . | . . . . . Knockbacks . | . . . . . Impact . | . . . . . Kinetic . | . . . . . Secondary . | . . . . . Self-Inflicted Damage 139 | . 72 . . 67 Shots 5 | . 2 . . 3 Rammed . | . . . . . Targets Rammed . | . . . . . Kicked . | . . . . . Crushed . | . . . . . Highest Temperature 81 | . 45 . . 81 Average Temperature 20 | . 25 . . 19 Received Heat Transfer 453 | . 69 . . 384 Siege Activations . | . . . . . Robots Corrupted . | . . . . . Combat Hostiles . | . . . . . Parts Fried . | . . . . . Impact Corruptions . | . . . . . Robots Melted . | . . . . . Combat Hostiles . | . . . . . Parts Melted . | . . . . . Heat Transferred 1025 | . 50 . . 975 Parts Sabotaged . | . . . . . Parts Stolen . | . . . . . Parts Stripped . | . . . . . Power Chain Reactions 6 | . 2 . . 4 Alert | -11 -10 -10 -10 -9 ------- Run | Yrd Mat Min Exi Min Peak Influence 420 | . 101 5 . 420 Initial . | . . . . . Average 27 | . 26 . . 30 Maximum Alert Level 2 | . . . . 2 Low Security (%) 98 | 100 100 100 . 97 Level 1 1 | . . . . 1 Level 2 . | . . . . . Level 3 . | . . . . . Level 4 . | . . . . . Level 5 . | . . . . . High Security . | . . . . . Max Security . | . . . . . Squads Dispatched 2 | . 1 . . 1 Investigation 2 | . 1 . . 1 Extermination . | . . . . . Reinforcement . | . . . . . Assault . | . . . . . Garrison . | . . . . . Intercept . | . . . . . Searches Triggered . | . . . . . Construction Impeded . | . . . . . Haulers Reinforced . | . . . . . Active Scanning Responses . | . . . . . Cargo Convoy Interrupts . | . . . . . Stealth | -11 -10 -10 -10 -9 --------- Run | Yrd Mat Min Exi Min Distress Signals 8 | . 1 . . 7 Communications Jammed . | . . . . . Distress Signals . | . . . . . Times Spotted 38 | . 5 . . 33 Peak Tracking Total 17 | . 2 . . 17 Tactical Retreats 1 | . . . . 1 Traps | -11 -10 -10 -10 -9 ------- Run | Yrd Mat Min Exi Min Traps Triggered 1 | . 1 . . . Indirectly . | . . . . . Trap Hack Attempts . | . . . . . Triggered . | . . . . . Disarmed . | . . . . . Reprogrammed . | . . . . . Reused . | . . . . . Traps Extracted . | . . . . . Installed . | . . . . . Triggered . | . . . . . Machines | -11 -10 -10 -10 -9 ---------- Run | Yrd Mat Min Exi Min Machines Disabled 3 | . 3 . . . Max in Single Turn 2 | . 2 . . . Machines Repaired . | . . . . . Machines Dismantled . | . . . . . Machines Sabotaged . | . . . . . Overloaded Fab Kills . | . . . . . Hacking | -11 -10 -10 -10 -9 --------- Run | Yrd Mat Min Exi Min Machines Accessed 9 | . 7 . 1 1 Terminals 7 | . 6 . . 1 Fabricators . | . . . . . Repair Stations . | . . . . . Recycling Units 1 | . 1 . . . Scanalyzers . | . . . . . Garrison Access . | . . . . . Total Hacks 19 | . 16 . 1 2 Successful 13 | . 12 . 1 . Failed 6 | . 4 . . 2 Catastrophic 1 | . 1 . . . Database Lockouts . | . . . . . Manual 12 | . 9 . 1 2 Terminals 16 | . 14 . . 2 Fabricators . | . . . . . Repair Stations . | . . . . . Recycling Units 2 | . 2 . . . Scanalyzers . | . . . . . Garrison Access . | . . . . . Terminal Hacks 5 | . 4 . 1 . Prototype ID Bank 1 | . 1 . . . Unreport Threat 1 | . 1 . . . Recall Investigation 1 | . 1 . . . Hauler Manifests 1 | . 1 . . . Derelict Proto ID Bank 1 | . . . 1 . Fabricator Hacks . | . . . . . Repair Station Hacks . | . . . . . Recycling Unit Hacks 2 | . 2 . . . Report Inventory 1 | . 1 . . . Retrieve Components 1 | . 1 . . . Scanalyzer . | . . . . . Garrison Access Hacks . | . . . . . Unauthorized Hacks 6 | . 6 . . . Terminals 6 | . 6 . . . Botnet 6 | . 6 . . . Fabricators . | . . . . . Repair Stations . | . . . . . Recycling Units . | . . . . . Scanalyzers . | . . . . . Garrison Access . | . . . . . Data Cores Recovered . | . . . . . Used . | . . . . . Hacking Detections 3 | . 2 . . 1 Full Trace Events 1 | . . . . 1 Feedback Events . | . . . . . Feedback Blocked . | . . . . . Robot Schematics Acquired . | . . . . . Robots Built . | . . . . . Authchips . | . . . . . Time . | . . . . . Total Robot Build Rating . | . . . . . Part Schematics Acquired . | . . . . . Parts Built . | . . . . . Authchips . | . . . . . Time . | . . . . . Total Part Build Rating . | . . . . . Parts Repaired . | . . . . . Time . | . . . . . Parts Recycled . | . . . . . Recycled Matter . | . . . . . Retrieved Matter . | . . . . . Retrieved Components 3 | . 3 . . . Parts Scanalyzed . | . . . . . Part Schematics Acquired . | . . . . . Parts Damaged . | . . . . . Bothacking | -11 -10 -10 -10 -9 ------------ Run | Yrd Mat Min Exi Min Used RIF Installer . | . . . . . Robots Hacked . | . . . . . Non-combat . | . . . . . Combat . | . . . . . Robot Hacks Applied . | . . . . . Relay Couplers Released . | . . . . . Fabnet Peak Effective % . | . . . . . Robots Rewired . | . . . . . Allies Hacked . | . . . . . Hacks Repelled . | . . . . . Allies | -11 -10 -10 -10 -9 -------- Run | Yrd Mat Min Exi Min Total Allies . | . . . . . Largest Group . | . . . . . Highest-Rated Group . | . . . . . Highest-Rated Ally . | . . . . . Total Orders . | . . . . . Ally Attacks . | . . . . . Total Damage . | . . . . . Kills . | . . . . . Allies Corrupted . | . . . . . Allies Melted . | . . . . . Intel | -11 -10 -10 -10 -9 ------- Run | Yrd Mat Min Exi Min Robot Analysis Total . | . . . . . Derelict Logs Recovered 3 | . . . . 3 Drone Launches . | . . . . . Drone Recoveries . | . . . . . Exploration | -11 -10 -10 -10 -9 ------------- Run | Yrd Mat Min Exi Min Turns Passed 5471 | 45 726 305 812 3583 Spaces Moved 2063 | 41 418 117 462 1025 Core 3 | 3 . . . . Treads . | . . . . . Legs 765 | . 176 117 462 10 Wheels 1295 | 38 242 . . 1015 Hover . | . . . . . Flight . | . . . . . Fastest Speed 50 | 50 90 260 120 80 Average Speed 129 | 87 164 260 175 80 Slowest Speed 260 | 100 260 260 260 120 Overloaded Moves . | . . . . . Propulsion Burnouts . | . . . . . Robots Hopped . | . . . . . Cave-ins Triggered . | . . . . . Time Travels 1 | . . . 1 . Exploration Rate (%) 46 | 4 65 22 77 66 Regions Visited 4 Branch Regions 3 Pre-discovered Areas . | . . . . . Known Exits Taken 3 | . 1 1 1 . Unknown Exits Taken 1 | 1 . . . . Scrap Searched 1 | . . . . 1 Spaces Dug . | . . . . . Terrain Destroyed 157 | . 27 . . 130 Melee . | . . . . . Projectile . | . . . . . AOE 157 | . 27 . . 130 Terrain Rammed . | . . . . . Walls Destroyed . | . . . . . Machines Disabled . | . . . . . Actions | -11 -10 -10 -10 -9 --------- Run | Yrd Mat Min Exi Min Total 4753 | 47 433 117 464 3692 Wait 2587 | . . . . 2587 Move 2059 | 40 417 116 461 1025 Hop . | . . . . . Pick Up 3 | 1 1 . . 1 Fast Attach 18 | 6 2 . . 10 Attach 1 | . . . 1 . Detach 4 | . . . 2 2 Swap 4 | . 1 . . 3 Drop 7 | . . . . 7 Fire 70 | . 12 1 . 57 Melee . | . . . . . Ram . | . . . . . Kick . | . . . . . Crush . | . . . . . Escape Stasis . | . . . . . Rewire . | . . . . . Trap . | . . . . . Miscellaneous . | . . . . . Route ------- -11/Scrapyard -10/Materials (discovered 3 exits: *Mat x2 / *Min) -10/Mines -10/Exiles -9/Mines History --------- Turn | Location | Event 11 | -11/Scrapyard | Discovered new exit (range 15) 46 | -11/Scrapyard | Entered Materials 252 | -10/Materials | Discovered new exit (range 4) 254 | -10/Materials | Identified exit to Materials 302 | -10/Materials | Build established: Mutant 419 | -10/Materials | Discovered exit to Materials (range 14) 590 | -10/Materials | Discovered new exit (range 8) 606 | -10/Materials | Identified exit to Mines 772 | -10/Materials | Entered Mines 1061 | -10/Mines | Deemed a non-threat by the Exiles lab entrance 1064 | -10/Mines | Discovered new exit (range 5) 1074 | -10/Mines | Identified exit to Exiles 1077 | -10/Mines | Entered Exiles 1148 | -10/Exiles | Met 8R-AWN 1192 | -10/Exiles | Met EX-HEX 1278 | -10/Exiles | Met EX-BIN 1306 | -10/Exiles | Aligned with FarCom system 1309 | -10/Exiles | Given EX-Vault access code 1540 | -10/Exiles | Opened EX-Vault 1554 | -10/Exiles | Found Prototype Device 1554 | -10/Exiles | Identified Chronowheel 1554 | -10/Exiles | Activated Chronowheel 1554 | -10/Exiles | Spacetime reconverged on an earlier point 1584 | -10/Exiles | Warned to stay clear of 0b10 Research branches 1616 | -10/Exiles | Met EX-DEC 1693 | -10/Exiles | Discovered new exit (range 14) 1705 | -10/Exiles | Identified exit to Mines 1789 | -10/Exiles | Visited The Gauntlet 1889 | -10/Exiles | Entered Mines 2006 | -9/Mines | Excavation squad dispatched 2006 | -9/Mines | A large section of the Mines collapsed 2256 | -9/Mines | Excavation squad dispatched 2506 | -9/Mines | Excavation squad dispatched 2756 | -9/Mines | Excavation squad dispatched 3006 | -9/Mines | Excavation squad dispatched 3021 | -9/Mines | Core integrity fell below 50% 3074 | -9/Mines | Core integrity fell below 20% 3176 | -9/Mines | Learned Materials stockpile data 3178 | -9/Mines | Learned 2 Materials zone layouts 3179 | -9/Mines | Learned location of 1 exit from Materials 3190 | -9/Mines | Received a Rocket Launcher from a helpful Derelict 3256 | -9/Mines | Excavation squad dispatched 3384 | -9/Mines | Build established: Scavenger-Mutant 3506 | -9/Mines | Excavation squad dispatched 3756 | -9/Mines | Excavation squad dispatched 4006 | -9/Mines | Excavation squad dispatched 4256 | -9/Mines | Excavation squad dispatched 4506 | -9/Mines | Excavation squad dispatched 4756 | -9/Mines | Excavation squad dispatched 5006 | -9/Mines | Excavation squad dispatched 5256 | -9/Mines | Excavation squad dispatched 5472 | -9/Mines | Destroyed by G-34 Mercenary with Small Laser Last Messages --------------- Acquired 11 matter. G-34 Mercenary destroyed. Destroyed Wheel. T-07 Excavator destroyed. Acquired 11 matter. Destroyed Med. Matter Pod. G-34 Mercenary destroyed. Dropped Rocket Launcher. Acquired Rocket Launcher. G-34 Mercenary destroyed. Sml. Laser destroyed. The unstable cave ceiling collapses. Sml. Laser crushed. Destroyed Lgt. Ion Engine. Destroyed Ion Engine. G-34 Mercenary destroyed. Wheel destroyed. Destroyed Seismic Detector. T-07 Excavator destroyed. G-34 Mercenary destroyed. Map ----- +----------------------------------------------------+ | ?????#%""" *###### ##### [%= ##????#???#?????????? | | ?????#=""" ##????# #####!==%|!##????? ???????????? | | ????## """ #?????# [ ==%%!##?????#??????????? | | ????# """ #?????###### ####%==#????????????????? | | ????# #??????????########!=##???????????????? | | ????## ##??????????#?????##%*=#???????????????? | | ?????## ##?????????????#####!= ### # #??????? | | ??????####?????????????## !%| #?????????? | | ?????????#???##??????### !% ###### #?????????? | | ????????## ##" ???###" ####???????????????? | | ????????# "###! %!t #####??????????????????? | | ??# #?## " |%!%t ???##?????????????????? | | ?# ## " % ! %% ??????????????????????? | | ?# " *%!gg =%! ??????????????????????? | | ?# = " = gg=|! ??????????????????????? | | ## [% #### !% %gg #?????????????????????? | | #?# ????## #[== ??????????????????????? | | #??# ?????## ##= #?????????????????????? | | #???# ??????###?? ##????????????????????? | | #????# g"???????????? #?????????????????????? | | ??????# ???????????? #?????????????????????? | | #???????# ######??????# #??????????????????????? | | #???????# #??????# #??????????????????????? | | #???????# #??????# #??????????????????????? | | #???????### ## #??????# !#??????????????????????? | | ?????????## ## ####??##=@#######????????????????? | | #???????## ## ### # #????????????????? | | ##?????## ####! ### # ##???????????????? | | ####?## ##### ########### ##???????????????? | | *#?# ### * ! ######## ##???????????????? | | ## ### ### % ! # #??????????????? | | ## ## #?# = ####### # #??????????????? | | # ##?## = ! ## # ## ##???????????????? | | ##### ##???#### ## ## # ###?????????????? | | ##???# #??????### ### ## ##????????????? | | ##????# #???????## # #??### ##???????????? | | ??????# ########## ##????## #???????????? | | ??????# # ##????## #??????????? | | ??????# # ##????## #??????????? | | ??????# # ######### ##????#######??????????? | | ??????# # #???????# ##????????????????????? | | ####### # #???????## ##??##???????????????? | | # #????????## ###T#####???????????? | | ########## ##????????## """ ## #???????????? | | #???????## ########### """ #???????????? | | ???????## ## """ #???????????? | | ???????# ## """ #???????????? | | ???????# ### ### """ #???????????? | | ???????# #####?# """ #???????????? | | ???????## ##?????? #???????????? | +----------------------------------------------------+ Best States ------------- Heat Dissipation 35 Energy Generation 10 Energy Capacity 125 Matter Stores 300 Matter Capacity 300 Sight Range 16 Terrain Scan Range 16 Terrain Scan Density 10 Armor Coverage 150 Resistance: KI 20 Resistance: TH 20 Resistance: EX 20 Resistance: EM 20 Resistance: I 20 Resistance: S 20 Resistance: P 20 Core Shielding 20 Evasion (%) 55 Offensive Hacking 10 Item Schematics ----------------- None Robot Schematics ------------------ None Fabricated ------------ Nothing Alien Tech Used ----------------- None Achievements -------------- None Challenges ------------ None Game ------ Seed AuthchipCentriumDatajack Manual? 0 Play Time 00:34:27 Cumulative 14.6 hours Start 2024.04.09 @ 15:42:01 End 2024.04.09 @ 18:42:45 Sessions 3 Manual Loads 0 Difficulty Adventurer Special Mode None Game No. 9 Rogue 0 Adventurer 9 Explorer 0 Win Type - Total 0 Types 0/0/0/0/0/0/0/0/0 Lore% 5 Gallery% 22 Achievement% 20 Wizard Run 0 Options --------- Layout 1 ASCII 0 Keyboard 0 Movement Mouse Keybinds 0 Fullscreen 0 Font 28/SmallcapsGlow Map View 50x40 Zoom Use 0% Tactical HUD 0 Map Filters NONE Filters NONE Steam 1 RUN: 992235e0-9d7e-4cca-b456-b48a235ab425